bitfinex/quotes_BTCUSD_20241203
["timestamp","ask_amount","ask_price","bid_price","bid_amount"]
[1733199482964,0.00515796,96225.0,96224.0,0.3925571]
[1733199483442,0.00515796,96225.0,96224.0,0.27974848]
[1733199483680,0.00515796,96225.0,96224.0,0.28174848]
[1733199483887,0.00515796,96225.0,96224.0,0.27774848]
[1733199484457,0.00515796,96225.0,96224.0,0.3865571]
[1733199484691,0.00515796,96225.0,96224.0,0.3895571]
[1733199484920,0.00515796,96225.0,96224.0,0.3945571]
[1733199485140,0.00515796,96225.0,96224.0,0.5895571]
[1733199485356,0.00615796,96225.0,96224.0,0.5925571]
[1733199485806,0.00515796,96225.0,96224.0,0.5865571]
[1733199486013,0.00515796,96225.0,96224.0,0.5925571]
[1733199486194,0.00515796,96225.0,96224.0,0.5865571]
[1733199486646,0.00515796,96225.0,96224.0,0.5965571]
[1733199487069,0.00515796,96225.0,96224.0,0.5935571]
[1733199487455,0.00515796,96225.0,96224.0,0.5955571]
[1733199487666,0.00515796,96225.0,96224.0,0.3955571]
[1733199487896,0.00515796,96225.0,96224.0,0.3885571]
[1733199488022,0.00515796,96225.0,96224.0,0.3925571]
[1733199488448,0.00515796,96225.0,96224.0,0.3885571]
[1733199488655,0.00515796,96225.0,96224.0,0.3925571]
[1733199491150,0.00515796,96225.0,96224.0,0.36014987]
[1733199491561,0.00515796,96225.0,96224.0,0.3924843]
[1733199491725,0.00515796,96225.0,96224.0,0.36014987]
[1733199493122,0.00515796,96225.0,96224.0,0.24934125]
[1733199493329,0.00515796,96225.0,96224.0,0.36014987]
[1733199493933,0.00515796,96225.0,96224.0,0.35814987]
[1733199494580,0.00515796,96225.0,96224.0,0.35614987]
[1733199494730,0.00515796,96225.0,96224.0,0.36014987]
[1733199495595,0.00515796,96225.0,96224.0,0.35614987]
[1733199496204,0.00515796,96225.0,96224.0,0.35714987]
[1733199500186,0.00515796,96225.0,96224.0,0.3894791]
[1733199500397,0.00515796,96225.0,96224.0,0.35714987]
[1733199500597,0.00515796,96225.0,96224.0,0.38948209]
[1733199512921,0.00515796,96225.0,96224.0,0.25988209]
[1733199525451,0.00515796,96225.0,96224.0,0.30638209]
[1733199533045,0.00515796,96225.0,96224.0,0.25988209]
[1733199538723,0.00515796,96225.0,96224.0,0.14907347]
[1733199538928,0.00515796,96225.0,96224.0,0.25988209]
[1733199540362,0.00515796,96225.0,96224.0,0.14907347]
[1733199540571,0.00515796,96225.0,96224.0,0.26172126]
[1733199540782,0.00515796,96225.0,96224.0,0.25988209]
[1733199544905,0.00515796,96225.0,96224.0,0.45988209]
[1733199545157,0.00515796,96225.0,96224.0,0.50908209]
[1733199549479,0.00515796,96225.0,96224.0,0.30908209]
[1733199549690,0.00515796,96225.0,96224.0,0.25988209]
[1733199549887,0.00515796,96225.0,96224.0,0.45988209]
[1733199550099,0.00515796,96225.0,96224.0,0.25276605]
[1733199550716,0.00515796,96225.0,96224.0,0.14195743]
[1733199551336,0.00515796,96225.0,96224.0,0.25460516]
[1733199551540,0.00515796,96225.0,96224.0,0.14195743]
[1733199551751,0.00515796,96225.0,96224.0,0.14379653]
[1733199552158,0.00515796,96225.0,96224.0,0.25460515]
[1733199552412,0.00515796,96225.0,96224.0,0.25276605]
[1733199552581,0.00515796,96225.0,96224.0,0.14195743]
[1733199552808,0.00515796,96225.0,96224.0,0.25276605]
[1733199553157,0.00515796,96225.0,96224.0,0.14195743]
[1733199554217,0.12805796,96225.0,96224.0,0.10962521]
[1733199554426,0.21724934,96225.0,96224.0,0.01292142]
[1733199554847,0.21724934,96225.0,96224.0,0.003]
[1733199555249,0.21724934,96225.0,96224.0,0.002]
[1733199555485,0.21724934,96225.0,96224.0,0.005]
[1733199555899,0.21724934,96225.0,96224.0,0.003]
[1733199556079,0.1277,96216.0,96203.0,0.00283892]
[1733199556289,0.1277,96216.0,96204.0,0.10284521]
[1733199556555,0.1277,96216.0,96204.0,0.11154079]
[1733199558638,0.42475838,96216.0,96204.0,0.11170116]
[1733199558989,0.21689138,96216.0,96205.0,0.00183963]
[1733199559199,0.21689138,96216.0,96206.0,0.31073221]
[1733199559406,0.21689138,96216.0,96206.0,0.31758258]
[1733199559819,0.21689138,96216.0,96206.0,0.10969558]
[1733199560269,0.21689138,96216.0,96206.0,0.31758158]
[1733199560880,0.21689138,96216.0,96206.0,0.11469558]
[1733199561315,0.21689138,96216.0,96207.0,0.207885]
[1733199561527,0.21689138,96216.0,96208.0,0.10284521]
[1733199562640,0.21689138,96216.0,96209.0,0.00125411]
[1733199562824,0.21689138,96216.0,96210.0,0.10284521]
[1733199563251,0.21689138,96216.0,96211.0,0.00125357]
[1733199563458,0.21689138,96216.0,96212.0,0.10284521]
[1733199563878,0.21689138,96216.0,96213.0,0.00125303]
[1733199564095,0.21689138,96216.0,96214.0,0.10284521]
[1733199564303,0.1277,96216.0,96214.0,0.10284521]
[1733199564733,0.21689138,96216.0,96214.0,0.10284521]
[1733199566289,0.21689138,96216.0,96215.0,0.00125249]
[1733199566516,0.21689138,96216.0,96215.0,0.1040977]
[1733199566927,0.1277,96216.0,96215.0,0.1040977]
[1733199567134,0.21689138,96216.0,96215.0,0.10284521]
[1733199567350,0.21689138,96216.0,96215.0,0.10841798]
[1733199567788,0.21689138,96216.0,96215.0,0.11341798]
[1733199568618,0.1277,96216.0,96215.0,0.11541798]
[1733199568831,0.21689138,96216.0,96215.0,0.11541798]
[1733199569801,0.21689138,96216.0,96215.0,0.11667047]
[1733199571542,0.21689138,96216.0,96215.0,0.10984521]
[1733199571983,0.21689138,96216.0,96215.0,0.007]
[1733199574178,0.21689138,96216.0,96215.0,0.10984521]
[1733199574588,0.21689138,96216.0,96215.0,0.11543752]
[1733199577410,0.1277,96216.0,96215.0,0.11543752]
[1733199577647,0.21689138,96216.0,96215.0,0.11543752]
[1733199578794,0.21689138,96216.0,96215.0,0.11669001]
[1733199579845,0.1277,96216.0,96215.0,0.11669001]
[1733199580058,0.21689138,96216.0,96215.0,0.11669001]
[1733199585969,0.21689138,96216.0,96215.0,0.11842041]
[1733199589359,0.16839138,96223.0,96215.0,0.11842041]
[1733199589571,0.08919138,96221.0,96216.0,0.10284521]
[1733199589759,0.08919138,96218.0,96216.0,0.10968657]
[1733199590416,0.08919138,96217.0,96216.0,0.10968657]
[1733199590666,0.08919138,96218.0,96217.0,0.207863]
[1733199590871,0.08919138,96218.0,96217.0,0.31070821]
[1733199590997,0.08919138,96219.0,96217.0,0.31070821]
[1733199591201,0.08919138,96219.0,96218.0,0.10284521]
[1733199593113,0.08919138,96219.0,96218.0,0.10384521]
[1733199593307,0.21339138,96219.0,96218.0,0.10384521]
[1733199593444,0.21339138,96219.0,96218.0,0.00225168]
[1733199593819,0.21339138,96219.0,96218.0,0.005]
[1733199597925,0.13699138,96219.0,96218.0,0.005]
[1733199603385,0.08919138,96219.0,96218.0,0.10784521]
[1733199603600,0.08919138,96219.0,96218.0,0.11467802]
[1733199603812,0.08919138,96220.0,96219.0,0.207859]
[1733199604021,0.08919138,96220.0,96219.0,0.31070421]
[1733199604653,0.08919138,96220.0,96219.0,0.10284521]
[1733199605084,0.08919138,96220.0,96219.0,0.10384521]
[1733199605286,0.08919138,96220.0,96219.0,0.10684521]
[1733199607098,0.08919138,96220.0,96219.0,0.10809662]
[1733199608204,0.34574738,96220.0,96219.0,0.10809662]
[1733199608401,0.34574738,96220.0,96219.0,0.10684521]
[1733199608652,0.34574738,96220.0,96219.0,0.004]
[1733199609690,0.34574738,96220.0,96219.0,0.003]
[1733199610236,0.29705638,96216.0,96215.0,0.0017304]
[1733199611709,0.29705638,96216.0,96215.0,0.0057304]
[1733199611924,0.29705638,96216.0,96215.0,0.0067304]
[1733199612137,0.08919138,96222.0,96215.0,0.23277561]
[1733199612327,0.0008652,96224.0,96220.0,0.31070121]
[1733199612525,0.0008652,96224.0,96222.0,0.207852]
[1733199612679,0.0008652,96224.0,96223.0,0.10284521]
[1733199613089,0.0008652,96224.0,96223.0,0.10468449]
[1733199613760,0.0008652,96224.0,96223.0,0.10284521]
[1733199613999,0.0008652,96224.0,96223.0,0.10568449]
[1733199614217,0.0008652,96224.0,96223.0,0.10468449]
[1733199614451,0.0008652,96224.0,96223.0,0.10568449]
[1733199614693,0.0008652,96224.0,96223.0,0.10384521]
[1733199615361,0.0008652,96224.0,96223.0,0.10483451]
[1733199616689,0.0008652,96224.0,96223.0,0.1104252]
[1733199616867,0.0008652,96224.0,96223.0,0.11226446]
[1733199618535,0.0008652,96224.0,96223.0,0.1104252]
[1733199623613,0.0008652,96224.0,96223.0,0.11226447]
[1733199623824,0.0008652,96224.0,96223.0,0.1104252]
[1733199624257,0.0008652,96224.0,96223.0,0.1121556]
[1733199624669,0.0008652,96224.0,96223.0,0.11399487]
[1733199624820,0.0008652,96224.0,96223.0,0.1121556]
[1733199626766,0.0008652,96224.0,96223.0,0.11340593]
[1733199629036,0.0008652,96224.0,96223.0,0.14582716]
[1733199629252,0.0008652,96224.0,96223.0,0.11340593]
[1733199629485,0.0008652,96224.0,96223.0,0.14582768]
[1733199629738,0.0008652,96224.0,96223.0,0.1152452]
[1733199629985,0.0008652,96224.0,96223.0,0.14582604]
[1733199630455,0.0008652,96224.0,96223.0,0.11340593]
[1733199630968,0.0008652,96224.0,96223.0,0.11524522]
[1733199631232,0.0008652,96224.0,96223.0,0.14766485]
[1733199631467,0.0008652,96224.0,96223.0,0.22986485]
[1733199631698,0.0008652,96224.0,96223.0,0.27432556]
[1733199633378,0.0008652,96224.0,96223.0,0.27932556]
[1733199633885,0.0008652,96224.0,96223.0,0.27832556]
[1733199634133,0.0008652,96224.0,96223.0,0.28732556]
[1733199634905,0.0008652,96224.0,96223.0,0.24102556]
[1733199635580,0.0008652,96224.0,96223.0,0.15882556]
[1733199637021,0.0008652,96224.0,96223.0,0.15882281]
[1733199637490,0.0008652,96224.0,96223.0,0.12640593]
[1733199637720,0.0008652,96224.0,96223.0,0.16066478]
[1733199638428,0.0008652,96224.0,96223.0,0.15882551]
[1733199638923,0.0008652,96224.0,96223.0,0.12640593]
[1733199641320,0.0008652,96224.0,96223.0,0.1282452]
[1733199641736,0.2087132,96224.0,96223.0,0.12640593]
[1733199643683,0.0008652,96224.0,96223.0,0.12640593]
[1733199646069,0.0008652,96224.0,96223.0,0.15885699]
[1733199646299,0.0008652,96224.0,96223.0,0.12640593]
[1733199646754,0.0008652,96224.0,96223.0,0.158877]
[1733199654395,0.0008652,96224.0,96223.0,0.14940324]
[1733199658143,0.0494655,96238.0,96237.0,0.20782]
[1733199658144,0.0008655,96238.0,96237.0,0.20782]
[1733199658353,0.0008655,96238.0,96237.0,0.43628647]
[1733199658573,0.0008655,96238.0,96237.0,0.4736252]
[1733199659294,0.0008655,96238.0,96237.0,0.4756252]
[1733199659848,0.0008655,96238.0,96237.0,0.4736252]
[1733199660516,0.0008655,96238.0,96237.0,0.6736252]
[1733199660717,0.0008655,96238.0,96237.0,0.6806252]
[1733199660890,0.1293,96278.0,96251.0,0.20779]
[1733199660891,0.08919138,96277.0,96251.0,0.20779]
[1733199661098,0.08919138,96277.0,96251.0,0.61774761]
[1733199661300,0.08919138,96277.0,96251.0,0.61590919]
[1733199661512,0.08919138,96277.0,96251.0,0.63688791]
[1733199661710,0.08919138,96277.0,96251.0,0.64259747]
[1733199662156,0.08919138,96277.0,96251.0,0.64484024]
[1733199662689,0.08919138,96282.0,96251.0,0.64484024]
[1733199662892,0.08919138,96277.0,96251.0,0.64484024]
[1733199663470,0.08919138,96277.0,96251.0,0.64582464]
[1733199664051,0.08919138,96277.0,96251.0,0.64882464]
[1733199666146,0.08919138,96277.0,96251.0,0.66592579]
[1733199666558,0.08919138,96277.0,96251.0,0.86592579]
[1733199666718,0.08919138,96276.0,96251.0,0.86592579]
[1733199667134,0.17039138,96286.0,96251.0,0.86592579]
[1733199667334,0.08919138,96276.0,96251.0,0.86592579]
[1733199667748,0.0812,96286.0,96251.0,0.99973441]
[1733199667947,0.0785,96294.0,96251.0,0.99973441]
[1733199668156,2e-07,96252.0,96251.0,3.30773441]
[1733199668791,0.0034581,96295.0,96251.0,3.30773441]
[1733199668792,0.0034581,96295.0,96294.0,0.207697]
[1733199669017,0.0034581,96295.0,96294.0,0.31054221]
[1733199669230,0.0034581,96295.0,96294.0,0.51054221]
[1733199669436,0.0034581,96295.0,96294.0,0.66738728]
[1733199670085,0.00351682,96295.0,96294.0,0.66738728]
[1733199671469,0.00351682,96295.0,96294.0,0.68868249]
[1733199671911,0.00451682,96295.0,96294.0,0.68868249]
[1733199674671,0.00451682,96295.0,96294.0,0.7193795]
[1733199676136,0.00451682,96295.0,96294.0,0.73708888]
[1733199676552,0.00451682,96295.0,96294.0,0.81828888]
[1733199680325,0.00451682,96295.0,96294.0,0.78759187]
[1733199681278,0.00538192,96295.0,96294.0,0.78759187]
[1733199683186,0.00525647,96295.0,96294.0,0.78759187]
[1733199688124,0.00525647,96295.0,96294.0,0.73847407]
[1733199688531,2.0,96298.0,96295.0,0.357694]
[1733199688738,2.00058679,96298.0,96297.0,0.10284521]
[1733199690678,1.99058679,96298.0,96297.0,0.10284521]
[1733199691282,1.99058679,96298.0,96297.0,0.10584521]
[1733199691684,1.99058679,96298.0,96297.0,0.10284521]
[1733199691946,1.99058679,96298.0,96297.0,0.10384521]
[1733199692147,1.99058679,96298.0,96297.0,0.10284521]
[1733199692360,1.99058679,96298.0,96297.0,0.10280352]
[1733199692565,1.99058679,96298.0,96297.0,0.11180352]
[1733199693494,1.99145159,96298.0,96297.0,0.14904932]
[1733199693691,1.99145159,96298.0,96297.0,0.14004932]
[1733199694093,1.99145159,96298.0,96297.0,0.14904932]
[1733199694298,1.99145159,96298.0,96297.0,0.14404932]
[1733199694502,1.99145159,96298.0,96297.0,0.15004932]
[1733199695510,1.99135284,96298.0,96297.0,0.35773932]
[1733199695715,1.99135284,96298.0,96297.0,0.3639988]
[1733199696143,1.99135284,96298.0,96297.0,0.35773932]
[1733199697179,1.99135284,96298.0,96297.0,0.36276774]
[1733199697407,1.99135284,96298.0,96297.0,0.34276774]
[1733199700529,1.99135284,96298.0,96297.0,0.46606774]
[1733199700937,1.99135284,96298.0,96297.0,0.50762474]
[1733199705338,1.99135284,96298.0,96297.0,0.46415514]
[1733199706111,1.99135284,96298.0,96297.0,0.38605514]
[1733199708060,1.99135284,96298.0,96297.0,0.34449814]
[1733199716098,1.99135284,96298.0,96297.0,0.34762363]
[1733199723454,1.99135284,96298.0,96297.0,0.42992363]
[1733199724094,1.95852584,96298.0,96297.0,0.62992363]
[1733199725020,1.95852584,96298.0,96297.0,0.62092363]
[1733199725240,1.96152584,96298.0,96297.0,0.62092363]
[1733199725444,1.96152584,96298.0,96297.0,0.61492363]
[1733199725875,1.96252584,96298.0,96297.0,0.61492363]
[1733199726288,1.96152584,96298.0,96297.0,0.61492363]
[1733199726693,1.96152584,96298.0,96297.0,0.61592363]
[1733199727060,1.95852584,96298.0,96297.0,0.61592363]
[1733199727670,1.95852584,96298.0,96297.0,0.61492363]
[1733199728669,1.95852584,96298.0,96297.0,0.53362363]
[1733199729353,1.95852584,96298.0,96297.0,0.33362363]
[1733199732940,0.77235537,96297.0,96295.0,0.15]
[1733199733160,0.77235537,96297.0,96296.0,0.03239244]
[1733199733991,0.77235537,96297.0,96296.0,0.13523765]
[1733199734753,0.77235537,96297.0,96296.0,0.13723765]
[1733199735603,0.77235537,96297.0,96296.0,0.13823765]
[1733199739136,0.77235537,96297.0,96296.0,0.13996805]
[1733199739343,0.77235537,96297.0,96296.0,0.14988883]
[1733199740167,0.77235537,96297.0,96296.0,0.13996805]
[1733199740601,0.77235537,96297.0,96296.0,0.14988752]
[1733199741752,0.77235537,96297.0,96296.0,0.13996805]
[1733199742210,0.85055537,96297.0,96296.0,0.13996805]
[1733199742414,0.85055537,96297.0,96296.0,0.14988765]
[1733199742625,0.98944675,96297.0,96296.0,0.10757561]
[1733199743086,0.98944675,96297.0,96296.0,0.13999961]
[1733199743533,0.98944675,96297.0,96296.0,0.11944801]
[1733199744021,0.98944675,96297.0,96296.0,0.08702401]
[1733199744239,0.98944675,96297.0,96296.0,0.09002401]
[1733199744708,0.98944675,96297.0,96296.0,0.09102401]
[1733199746526,0.98944675,96297.0,96296.0,0.0057304]
[1733199747530,0.98944675,96297.0,96296.0,0.0047304]
[1733199747879,1.00660351,96297.0,96296.0,0.0077304]
[1733199748287,1.00660351,96297.0,96296.0,0.0017304]
[1733199749592,1.00660351,96297.0,96296.0,0.0087304]
[1733199749796,1.00660351,96297.0,96296.0,0.0107304]
[1733199749996,1.00660351,96297.0,96296.0,0.0037304]
[1733199750219,1.00660351,96297.0,96296.0,0.0087304]
[1733199750690,0.98944675,96297.0,96296.0,0.0087304]
[1733199751746,0.99031195,96297.0,96296.0,0.0087304]
[1733199752843,0.99031195,96297.0,96296.0,0.11157561]
[1733199754890,0.99031195,96297.0,96296.0,0.0087304]
[1733199757055,1.00730092,96297.0,96296.0,0.0087304]
[1733199760840,0.99031195,96297.0,96296.0,0.0087304]
[1733199766353,1.00799634,96297.0,96296.0,0.0087304]
[1733199770546,0.23564097,96297.0,96296.0,0.0087304]
[1733199770744,0.21795658,96297.0,96296.0,0.0087304]
[1733199780455,0.23493157,96297.0,96296.0,0.0087304]
[1733199780943,0.21795658,96297.0,96296.0,0.0087304]
[1733199783518,0.21795658,96297.0,96296.0,0.0067304]
[1733199783725,0.29690938,96284.0,96283.0,0.0009934]
[1733199783961,0.29690938,96284.0,96244.0,0.11080862]
[1733199783962,0.29693538,96272.0,96254.0,0.1488]
[1733199784168,0.41973538,96272.0,96254.0,0.02]
[1733199784856,0.41973538,96272.0,96257.0,0.207776]
[1733199785891,0.41973538,96272.0,96271.0,0.0087296]
[1733199786520,0.41973538,96272.0,96271.0,0.0117296]
[1733199790516,0.7606254,96271.0,96262.0,0.0009873]
[1733199790738,0.08919138,96263.0,96262.0,0.0009873]
[1733199792006,0.09119138,96263.0,96262.0,0.00104602]
[1733199793053,0.09319138,96263.0,96261.0,0.28849466]
[1733199793260,0.09377785,96263.0,96262.0,0.10284521]
[1733199793689,0.09377785,96263.0,96262.0,0.09713184]
[1733199794965,0.09177785,96263.0,96262.0,0.09713184]
[1733199795172,0.09477785,96263.0,96262.0,0.09713184]
[1733199795585,0.09177785,96263.0,96262.0,0.09713184]
[1733199796065,0.09477785,96263.0,96262.0,0.09713184]
[1733199796278,0.30254185,96263.0,96262.0,0.09713184]
[1733199796466,0.09477785,96263.0,96262.0,0.09713184]
[1733199797134,0.09477785,96263.0,96262.0,0.09799714]
[1733199797792,0.09477785,96263.0,96262.0,0.10836894]
[1733199800162,0.09451494,96263.0,96262.0,0.10836894]
[1733199800584,0.09451494,96263.0,96262.0,0.09799714]
[1733199800809,0.30227894,96263.0,96262.0,0.09799714]
[1733199801020,0.09451494,96263.0,96262.0,0.09799714]
[1733199802513,0.09451494,96263.0,96262.0,0.10836894]
[1733199808653,0.09624614,96263.0,96262.0,0.10836894]
[1733199816469,0.09624614,96263.0,96262.0,0.09799714]
[1733199816896,0.09624614,96263.0,96262.0,0.10839457]
[1733199818386,0.09624614,96263.0,96262.0,0.10963437]
[1733199822671,0.09624614,96263.0,96262.0,0.31740037]
[1733199828186,0.09624614,96263.0,96262.0,0.01250253]
[1733199828387,0.22424614,96263.0,96262.0,0.01085677]
[1733199828588,0.22424614,96263.0,96248.0,0.207796]
[1733199828718,0.08892847,96255.0,96249.0,0.13532343]
[1733199828917,0.08892847,96255.0,96250.0,0.03247822]
[1733199829244,0.08892847,96255.0,96251.0,0.10284521]
[1733199829470,0.08892847,96257.0,96252.0,0.03247822]
[1733199829695,0.08892847,96255.0,96253.0,0.10284521]
[1733199829896,0.08892847,96255.0,96254.0,0.03247822]
[1733199830030,0.08892847,96257.0,96254.0,0.13532343]
[1733199830230,0.13031767,96263.0,96252.0,0.207787]
[1733199830231,0.08892847,96255.0,96252.0,0.207787]
[1733199830493,0.08892847,96255.0,96253.0,0.03247837]
[1733199830921,0.08892847,96255.0,96254.0,0.207783]
[1733199831094,0.08892847,96255.0,96254.0,0.34310658]
[1733199832554,0.08892847,96255.0,96254.0,0.34610658]
[1733199832767,0.08892847,96255.0,96254.0,0.34934854]
[1733199835858,0.08892847,96255.0,96254.0,0.3596421]
[1733199836692,0.08892847,96255.0,96254.0,0.3566671]
[1733199836865,0.08892847,96255.0,96254.0,0.1518591]
[1733199842965,0.08892847,96255.0,96254.0,0.1535903]
[1733199843334,0.08892847,96255.0,96254.0,0.1522363]
[1733199845227,0.08892847,96255.0,96254.0,0.13930439]
[1733199846038,0.08892847,96256.0,96254.0,0.13930439]
[1733199846251,0.08892847,96255.0,96254.0,0.10682602]
[1733199846453,0.08892847,96255.0,96254.0,0.13930305]
[1733199847066,0.08892847,96255.0,96254.0,0.13730305]
[1733199847275,0.08892847,96255.0,96254.0,0.13830305]
[1733199847692,0.08892847,96255.0,96254.0,0.11503472]
[1733199847890,0.08892847,96255.0,96254.0,0.11403472]
[1733199848095,0.08892847,96255.0,96254.0,0.11503472]
[1733199850635,0.08892847,96255.0,96254.0,0.0426691]
[1733199851858,0.08892847,96255.0,96254.0,0.02358356]
[1733199852497,0.08892847,96255.0,96254.0,0.0560564]
[1733199855433,0.08979367,96255.0,96254.0,0.0560564]
[1733199856273,0.0008652,96255.0,96254.0,0.1838564]
[1733199857457,0.0008652,96255.0,96254.0,0.1856952]
[1733199859295,0.08979367,96255.0,96254.0,0.1856952]
[1733199859501,0.08979367,96255.0,96254.0,0.1838564]
[1733199861223,0.0008652,96255.0,96254.0,0.1838564]
[1733199861420,0.0008652,96255.0,96254.0,0.18569509]
[1733199861581,0.0008652,96255.0,96254.0,0.1838564]
[1733199863674,0.0008652,96255.0,96254.0,0.1834774]
[1733199863889,0.5771476,96254.0,96253.0,0.207784]
[1733199864099,0.5771476,96254.0,96253.0,0.24025175]
[1733199865002,0.5771476,96254.0,96253.0,0.23738579]
[1733199865233,0.5831476,96254.0,96253.0,0.23838579]
[1733199865409,0.5831476,96254.0,96253.0,0.341231]
[1733199866026,0.5861476,96254.0,96253.0,0.341231]
[1733199866874,0.5861476,96254.0,96253.0,0.33853792]
[1733199868012,0.5861476,96254.0,96253.0,0.10384521]
[1733199868234,0.5861476,96254.0,96253.0,0.09419147]
[1733199870165,0.5861476,96254.0,96253.0,0.10287143]
[1733199874040,0.5861476,96254.0,96253.0,0.13533767]
[1733199875706,0.5861476,96254.0,96253.0,0.0017304]
[1733199875913,0.7148476,96254.0,96253.0,0.0017304]
[1733199876137,0.7148476,96254.0,96241.0,0.19354064]
[1733199876403,0.7148476,96254.0,96243.0,0.207807]
[1733199876612,0.7148476,96254.0,96244.0,0.13531153]
[1733199876849,0.7148476,96254.0,96245.0,0.24026932]
[1733199877050,0.7118476,96254.0,96246.0,0.13531153]
[1733199877262,0.7118476,96254.0,96246.0,0.11154506]
[1733199877402,0.7058476,96254.0,96246.0,0.11154506]
[1733199877821,0.7078476,96254.0,96246.0,0.11154506]
[1733199878016,0.7058476,96254.0,96246.0,0.11154506]
[1733199878538,0.7088476,96254.0,96246.0,0.11154506]
[1733199879607,0.7088476,96254.0,96247.0,0.03245783]
[1733199879826,0.7098476,96254.0,96248.0,0.10284521]
[1733199879981,0.7098476,96254.0,96249.0,0.03245783]
[1733199880228,0.7098476,96254.0,96250.0,0.10284521]
[1733199880568,0.7098476,96254.0,96251.0,0.03245783]
[1733199880780,0.7098476,96254.0,96251.0,0.14399935]
[1733199880987,0.7098476,96254.0,96252.0,0.03245783]
[1733199881198,0.7098476,96254.0,96252.0,0.13530304]
[1733199881433,0.7058476,96254.0,96253.0,0.04114897]
[1733199881643,0.7058476,96254.0,96253.0,0.14399418]
[1733199881644,0.7108476,96254.0,96253.0,0.14399418]
[1733199882242,0.7158476,96254.0,96253.0,0.14399418]
[1733199882445,0.7118476,96254.0,96253.0,0.14399418]
[1733199882854,0.7178476,96254.0,96253.0,0.14499418]
[1733199883051,0.7208476,96254.0,96253.0,0.14499418]
[1733199884097,0.5921476,96254.0,96253.0,0.14499418]
[1733199884294,0.5891476,96254.0,96253.0,0.14499418]
[1733199884652,0.5921476,96254.0,96253.0,0.14499418]
[1733199885559,0.5921476,96254.0,96253.0,0.35277918]
[1733199885982,0.5921476,96254.0,96253.0,0.14499418]
[1733199892871,0.5930129,96254.0,96253.0,0.14499418]
[1733199901939,0.5930129,96254.0,96253.0,0.14190623]
[1733199913126,0.0158653,96254.0,96253.0,0.14190623]
[1733199924379,0.0158653,96254.0,96253.0,0.14283797]
[1733199928345,0.43431003,96253.0,96252.0,0.208786]
[1733199928543,0.43431003,96253.0,96252.0,0.34410812]
[1733199929718,0.43431003,96253.0,96252.0,0.34310812]
[1733199929955,0.43931003,96253.0,96252.0,0.34310812]
[1733199930831,0.44131003,96253.0,96252.0,0.34310812]
[1733199932261,0.44131003,96253.0,96252.0,0.3438072]
[1733199936235,0.44131003,96253.0,96252.0,0.33891321]
[1733199945632,0.44131003,96253.0,96252.0,0.38671321]
[1733199946247,0.42939261,96253.0,96252.0,0.75971321]
[1733199946473,0.41284205,96253.0,96252.0,0.75971321]
[1733199946685,0.38909561,96253.0,96252.0,0.83871321]
[1733199947862,0.38709561,96253.0,96252.0,0.83871321]
[1733199948223,0.38309561,96253.0,96252.0,0.83871321]
[1733199950360,0.38709561,96253.0,96252.0,0.83871321]
[1733199950585,0.38709561,96253.0,96252.0,0.84044381]
[1733199950784,0.38796091,96253.0,96252.0,0.84044381]
[1733199953049,0.0058653,96253.0,96252.0,0.84044381]
[1733199955958,0.0058653,96253.0,96252.0,0.71364381]
[1733199959081,0.0058653,96253.0,96252.0,0.69064381]
[1733199960739,0.0058653,96253.0,96252.0,0.49064381]
[1733199961147,0.0058653,96253.0,96252.0,0.69064381]
[1733199968247,0.0058653,96253.0,96252.0,0.41635899]
[1733199968688,0.0058653,96253.0,96252.0,0.62414499]
[1733199975704,0.0058653,96253.0,96252.0,0.60682047]
[1733199990665,0.0492,96261.0,96260.0,0.20777]
[1733199990864,0.0492,96261.0,96260.0,0.34307462]
[1733199991300,0.0492,96261.0,96260.0,0.34802467]
[1733199991866,0.0492,96261.0,96260.0,0.35302467]
[1733199992103,0.0502,96261.0,96260.0,0.35702467]
[1733199993001,0.0502,96261.0,96260.0,0.37758032]
[1733199994007,0.0502,96261.0,96260.0,0.39502661]
[1733199995407,0.0502,96261.0,96260.0,0.37758032]
[1733199997560,0.0502,96261.0,96260.0,0.37473632]
[1733199999247,0.0510653,96261.0,96260.0,0.37473632]
[1733200001675,0.0510653,96261.0,96260.0,0.06696511]
[1733200001922,0.1308653,96261.0,96260.0,0.06696511]
[1733200009438,0.1308653,96261.0,96260.0,0.04640946]
[1733200014489,0.0510653,96261.0,96260.0,0.14925467]
[1733200014664,0.0018653,96261.0,96260.0,0.14925467]
[1733200022799,0.0018653,96261.0,96260.0,0.15098527]
[1733200026454,0.0809653,96261.0,96260.0,0.15098527]
[1733200027525,0.1277653,96261.0,96260.0,0.04814006]
[1733200029419,0.21669377,96261.0,96260.0,0.04814006]
[1733200029613,0.21669377,96261.0,96260.0,0.04319001]
[1733200029822,0.21669377,96261.0,96260.0,0.0481493]
[1733200032007,0.21669377,96261.0,96260.0,0.01568989]
[1733200033574,0.21669377,96261.0,96260.0,0.04813583]
[1733200040507,0.21669377,96261.0,96260.0,0.01568989]
[1733200040708,0.21669377,96261.0,96260.0,0.04813479]
[1733200041378,0.21669377,96261.0,96260.0,0.01568989]
[1733200042468,0.21669377,96261.0,96260.0,0.04813573]
[1733200043509,0.09079377,96261.0,96260.0,0.04813573]
[1733200044109,0.09079377,96261.0,96260.0,0.15098094]
[1733200058471,0.09079377,96261.0,96260.0,0.04813573]
[1733200058667,0.17039377,96261.0,96260.0,0.01568989]
[1733200062896,0.09079377,96261.0,96260.0,0.01568989]
[1733200066562,0.09079377,96261.0,96260.0,0.1185351]
[1733200066708,0.09079377,96261.0,96260.0,0.15098112]
[1733200070167,0.0018653,96261.0,96260.0,0.15098112]
[1733200070551,0.09079377,96261.0,96260.0,0.15098112]
[1733200076616,0.09079377,96261.0,96260.0,0.04813591]
[1733200077440,0.09079377,96261.0,96260.0,0.01568989]
[1733200081039,0.09079377,96261.0,96260.0,0.0107306]
[1733200092479,0.10830523,96261.0,96260.0,0.0107306]
[1733200096030,0.09079377,96261.0,96260.0,0.0107306]
[1733200097090,0.10834773,96261.0,96260.0,0.0107306]
[1733200100417,0.09079377,96261.0,96260.0,0.0107306]
[1733200114863,0.09079377,96261.0,96260.0,0.0057306]
[1733200115325,0.09079377,96261.0,96260.0,0.0087306]
[1733200115751,0.09079377,96261.0,96260.0,0.0057306]
[1733200116387,0.08979377,96261.0,96260.0,0.0017306]
[1733200116609,0.09079377,96261.0,96260.0,0.0067306]
[1733200117702,0.09079377,96261.0,96260.0,0.0097306]
[1733200119176,0.21839377,96261.0,96260.0,0.0097306]
[1733200137356,0.23556984,96261.0,96260.0,0.0097306]
[1733200151519,0.21839377,96261.0,96260.0,0.0097306]
[1733200155936,0.23552295,96261.0,96260.0,0.0097306]
[1733200161192,0.21839377,96261.0,96260.0,0.0097306]
[1733200167884,0.23527882,96261.0,96260.0,0.0097306]
[1733200171105,0.21839377,96261.0,96260.0,0.0097306]
[1733200173521,0.21839377,96261.0,96244.0,0.0017306]
[1733200173522,0.08892847,96242.0,96239.0,0.01520335]
[1733200174123,0.08892847,96242.0,96230.0,0.0499]
[1733200174773,0.08992847,96242.0,96231.0,0.2288506]
[1733200175398,0.08992847,96242.0,96239.0,0.0017304]
[1733200175603,0.001,96242.0,96239.0,0.0017304]